bitfinex-derivatives/quotes_ETHF0:USTF0_20260303
["timestamp","ask_amount","ask_price","bid_price","bid_amount"]
[1772549170351,3.63263062,1944.4,1942.9,3.32621272]
[1772549170561,3.63263062,1944.4,1942.9,3.33012398]
[1772549170760,3.63263062,1944.4,1943.0,3.58358272]
[1772549170961,3.63263062,1944.4,1943.0,3.32621272]
[1772549171463,3.63263062,1944.0,1942.9,3.33012398]
[1772549171759,3.88988062,1943.9,1942.9,3.33012398]
[1772549171961,3.63263062,1944.2,1942.9,3.33012398]
[1772549172260,0.25718,1944.5,1942.9,3.33012398]
[1772549172261,3.63263062,1944.5,1943.0,3.58358272]
[1772549172451,6.58809528,1945.1,1943.0,3.58358272]
[1772549172452,0.00630528,1945.1,1943.9,3.32621272]
[1772549172658,0.00630528,1945.1,1944.3,3.32621272]
[1772549172859,0.00630528,1945.1,1944.3,3.32998293]
[1772549173063,3.63263062,1945.6,1944.3,3.32998293]
[1772549173356,3.63263062,1946.0,1944.3,3.32998293]
[1772549173552,3.63263062,1945.6,1944.4,3.32621272]
[1772549174059,3.63263062,1945.5,1944.4,3.32621272]
[1772549174252,3.63263062,1944.9,1943.8,3.32621272]
[1772549174456,3.63263062,1944.5,1943.5,3.32621272]
[1772549174662,0.25719,1944.4,1943.5,3.32621272]
[1772549174854,3.63263062,1944.3,1943.1,3.32621272]
[1772549175261,3.63263062,1944.3,1943.1,3.33092792]
[1772549175862,3.63263062,1944.7,1943.1,3.58828792]
[1772549176362,3.88975062,1945.0,1943.4,3.32621272]
[1772549176559,3.63263062,1944.9,1943.4,3.32621272]
[1772549176759,3.63263062,1944.7,1943.4,3.32621272]
[1772549177159,3.63263062,1944.5,1943.4,3.32621272]
[1772549178158,3.30188024,1943.9,1943.1,3.31391142]
[1772549178462,3.30614116,1943.9,1943.1,3.31391142]
[1772549179160,3.54561246,1944.5,1943.1,3.31391142]
[1772549179365,3.54561246,1944.5,1943.1,3.57127142]
[1772549179366,3.28843246,1944.5,1943.1,3.57127142]
[1772549179557,3.54560246,1944.5,1943.1,3.31391142]
[1772549180161,0.2572,1944.3,1943.1,3.31391142]
[1772549180363,3.28843246,1944.0,1943.1,3.31391142]
[1772549180767,3.28843246,1945.0,1943.6,3.50321]
[1772549181059,6.725,1945.5,1944.0,3.50321]
[1772549181267,3.28843246,1945.4,1944.2,3.50321]
[1772549181656,3.28843246,1945.4,1944.4,3.50321]
[1772549181969,0.00413921,1945.4,1944.6,3.50321]
[1772549182163,0.00413921,1945.4,1944.6,10.23448999]
[1772549182367,3.29257167,1945.4,1944.6,0.00527999]
[1772549182568,3.29257167,1945.4,1944.3,3.50321]
[1772549182759,3.28843246,1944.8,1943.7,3.50321]
[1772549183071,3.28843246,1944.6,1943.7,3.50321]
[1772549183466,3.28843246,1944.6,1943.7,3.5098867]
[1772549183663,3.28843246,1944.4,1943.7,0.0066767]
[1772549183861,9.61344246,1945.0,1943.8,3.50321]
[1772549184160,3.28843246,1944.7,1943.7,0.0066767]
[1772549184364,3.28843246,1944.5,1943.7,0.0066767]
[1772549184669,3.28843246,1945.0,1943.7,3.5098867]
[1772549184860,3.28843246,1945.0,1943.8,3.50321]
[1772549185065,3.28843246,1945.3,1944.0,3.50321]
[1772549185265,3.28843246,1945.3,1943.9,0.25725]
[1772549185266,3.29257167,1945.4,1944.4,3.50321]
[1772549185566,0.00413921,1945.4,1944.4,3.50321]
[1772549185758,0.00413921,1945.4,1944.2,0.25721]
[1772549185759,0.00413921,1945.4,1944.6,3.50321]
[1772549186163,3.29257167,1945.4,1944.6,3.50321]
[1772549186360,3.29257167,1945.4,1944.3,3.50321]
[1772549186767,3.28843246,1945.0,1944.0,3.50321]
[1772549187173,3.28843246,1945.3,1944.0,3.50321]
[1772549187365,3.28843246,1945.3,1944.0,3.76045]
[1772549188174,3.28843246,1945.3,1944.0,3.50321]
[1772549188474,0.00413921,1945.4,1944.0,3.50321]
[1772549188475,0.00413921,1945.4,1944.1,3.50321]
[1772549188876,3.29257167,1945.4,1944.3,3.50321]
[1772549189174,0.68628601,1945.3,1944.3,3.50321]
[1772549189375,3.29257167,1945.4,1944.3,3.50321]
[1772549190172,0.68615729,1945.3,1944.3,3.50321]
[1772549190371,0.00413921,1945.4,1944.3,3.50321]
[1772549190669,3.28843246,1945.9,1944.5,3.50321]
[1772549190873,3.28843246,1946.7,1945.5,3.50321]
[1772549191068,4.14605722,1946.8,1945.5,3.50321]
[1772549191069,3.28843246,1946.5,1945.5,3.50321]
[1772549191269,4.14605722,1946.8,1945.5,3.50321]
[1772549191270,3.28843246,1946.8,1945.5,3.50321]
[1772549191573,3.97501481,1946.7,1945.5,3.50321]
[1772549191779,0.68658235,1946.6,1945.5,3.50970241]
[1772549192077,0.94446196,1947.3,1946.3,3.50321]
[1772549192270,4.23289442,1947.3,1946.3,3.50321]
[1772549192472,3.28843246,1947.0,1945.9,3.50321]
[1772549192773,3.96982638,1946.9,1945.5,3.50970241]
[1772549192978,3.29434072,1946.9,1945.5,3.50970241]
[1772549193172,0.94446196,1947.3,1946.1,6.32136]
[1772549193369,0.94446196,1947.3,1946.2,3.50321]
[1772549193678,0.25684,1947.0,1945.7,3.50321]
[1772549193872,7.67046196,1947.3,1945.7,3.50321]
[1772549193873,3.28843246,1946.9,1945.7,3.50321]
[1772549194073,3.28843246,1947.2,1945.9,3.50321]
[1772549194274,3.28843246,1947.0,1945.9,3.50321]
[1772549194475,3.28843246,1946.6,1945.6,3.50321]
[1772549194675,3.28843246,1946.4,1945.6,3.50321]
[1772549194879,3.54539246,1946.1,1945.1,3.50321]
[1772549195074,3.28843246,1946.0,1945.1,3.50321]
[1772549195284,3.28843246,1946.3,1945.1,3.50321]
[1772549195882,3.28843246,1946.3,1945.1,3.50877076]
[1772549196078,3.28843246,1946.6,1945.1,3.50877076]
[1772549196278,3.28843246,1946.6,1945.3,3.50321]
[1772549196482,3.28843246,1946.4,1945.3,3.50321]
[1772549196684,3.28843246,1946.0,1945.1,0.00556076]
[1772549196879,3.28843246,1945.8,1945.1,0.00556076]
[1772549197078,3.2935717,1945.8,1945.1,0.00556076]
[1772549197279,3.2935717,1945.8,1944.7,3.50321]
[1772549198185,3.28843246,1945.6,1944.7,0.00554497]
[1772549198479,3.28843246,1945.6,1943.8,3.50321]
[1772549198480,3.28843246,1945.2,1943.8,3.50321]
[1772549199384,3.54550246,1945.3,1943.8,3.50321]
[1772549199584,3.54550246,1945.3,1943.8,3.50816102]
[1772549199986,0.00513924,1945.8,1944.2,3.50321]
[1772549200189,3.28843246,1945.6,1944.4,3.50321]
[1772549200683,3.28843246,1945.4,1944.4,3.50321]
[1772549201379,3.28843246,1945.4,1944.0,3.50321]
[1772549201585,3.28843246,1944.8,1943.8,3.50816102]
[1772549201780,3.28843246,1944.6,1943.8,0.00495102]
[1772549201978,3.28843246,1944.4,1943.5,3.50321]
[1772549202381,3.28843246,1944.3,1943.1,3.50321]
[1772549202782,6.728,1944.4,1943.1,3.50321]
[1772549202987,0.00519401,1944.4,1943.2,10.09139]
[1772549203188,0.00519401,1944.4,1943.2,3.76056]
[1772549204185,3.28843246,1944.3,1943.1,0.00646127]
[1772549204683,3.28843246,1944.1,1943.1,0.00646127]
[1772549204884,3.28843246,1943.9,1943.1,0.00646127]
[1772549205087,3.28843246,1943.7,1942.9,3.50321]
[1772549205387,3.54572246,1943.6,1942.3,3.50321]
[1772549205784,6.32792,1944.1,1942.3,3.50321]
[1772549205983,3.28843246,1943.9,1942.3,3.50765279]
[1772549206383,3.28843246,1943.7,1942.3,3.50765279]
[1772549206787,3.28843246,1943.7,1942.5,3.50321]
[1772549206984,3.28843246,1944.0,1942.5,3.50321]
[1772549207187,10.01843246,1944.3,1942.9,3.50321]
[1772549207381,0.00519401,1944.4,1943.5,3.50321]
[1772549207690,3.28843246,1945.5,1944.1,3.50321]
[1772549207890,3.28843246,1945.5,1944.3,3.46848954]
[1772549208089,6.73,1945.7,1944.3,3.46848954]
[1772549208286,3.72274175,1945.4,1944.3,3.46848954]
[1772549208481,3.72274175,1944.8,1943.8,3.46848954]
[1772549208683,10.45374175,1944.7,1943.8,3.46848954]
[1772549208886,3.72274175,1944.6,1943.8,3.46848954]
[1772549209285,3.72274175,1944.6,1943.3,3.46848954]
[1772549209492,6.32571,1944.8,1943.3,3.47444553]
[1772549209493,3.72274175,1944.4,1943.3,3.47444553]
[1772549210594,10.45374175,1944.5,1943.3,3.47444553]
[1772549210794,3.72274175,1944.4,1943.3,3.47444553]
[1772549210993,3.97993175,1944.4,1943.3,0.00595599]
[1772549211483,3.97993175,1944.4,1943.3,3.47444553]
[1772549211683,9.41644083,1944.7,1943.3,3.47444553]
[1772549211684,10.45374175,1944.7,1943.3,3.47444553]
[1772549211991,3.72274175,1944.6,1943.3,3.47444553]
[1772549212593,3.72274175,1944.5,1943.3,3.47444553]
[1772549212996,3.97992175,1944.5,1943.3,3.47444553]
[1772549213197,3.72274175,1944.5,1943.3,3.47444553]
[1772549213395,3.72274175,1945.0,1943.3,3.47444553]
[1772549213598,10.45374175,1944.8,1943.3,3.47444553]
[1772549213789,3.72274175,1944.8,1943.4,3.46848954]
[1772549214094,0.2571,1945.1,1943.8,3.46848954]
[1772549214095,10.45374175,1945.1,1943.8,3.46848954]
[1772549214291,3.72274175,1945.0,1943.8,3.46848954]
[1772549214493,10.45374175,1945.0,1943.8,3.46848954]
[1772549214693,0.00450154,1945.4,1944.0,3.46848954]
[1772549214893,0.00450154,1945.4,1944.2,3.46848954]
[1772549215093,3.72724329,1945.4,1944.3,3.46848954]
[1772549215288,10.45824329,1945.4,1944.3,3.46848954]
[1772549215588,0.00450154,1945.4,1944.3,3.46848954]
[1772549215795,0.00450154,1945.4,1944.5,3.46848954]
[1772549216194,3.72724329,1945.4,1944.5,3.46848954]
[1772549216494,3.97981175,1945.3,1943.7,3.46848954]
[1772549216695,10.45374175,1945.2,1943.9,3.46848954]
[1772549217297,10.45274175,1945.2,1943.9,3.46848954]
[1772549217496,3.72274175,1945.1,1943.9,3.46848954]
[1772549217697,6.73,1945.1,1943.9,3.46848954]
[1772549217896,3.72274175,1945.0,1943.9,3.46848954]
[1772549218099,3.72274175,1944.6,1943.4,3.46848954]
[1772549218402,3.72274175,1944.4,1943.4,3.46848954]
[1772549218796,10.45274175,1944.5,1943.4,3.46848954]
[1772549219096,3.97993175,1944.4,1943.4,3.46848954]
[1772549219997,10.45274175,1944.4,1943.4,3.46848954]
[1772549220193,0.25711,1945.0,1943.4,3.46848954]
[1772549220400,3.97987175,1944.8,1943.4,3.46848954]
[1772549220701,6.32497,1945.1,1943.8,3.46848954]
[1772549220702,3.72274175,1945.1,1943.8,3.46848954]
[1772549221201,3.72274175,1945.3,1944.2,3.46848954]
[1772549221502,3.72274175,1944.9,1943.9,3.46848954]
[1772549221698,3.72274175,1944.7,1943.4,3.46848954]
[1772549221899,3.97984175,1945.1,1943.6,3.46848954]
[1772549222095,6.73,1945.3,1943.8,3.46848954]
[1772549222295,3.72274175,1945.2,1944.0,3.46848954]
[1772549222498,3.72274175,1944.9,1943.7,3.46848954]
[1772549222700,3.72274175,1944.8,1943.7,3.46848954]
[1772549223206,3.72274175,1944.7,1943.7,3.46848954]
[1772549223500,3.72274175,1944.5,1943.4,3.46848954]
[1772549223702,3.72274175,1944.3,1943.4,3.46848954]
[1772549224202,0.25714,1944.8,1943.3,3.47444553]
[1772549224501,3.72274175,1944.6,1943.5,3.46848954]
[1772549224700,3.97997175,1944.1,1943.3,0.00595599]
[1772549224898,3.72274175,1943.7,1942.7,3.46848954]
[1772549225296,0.2572,1944.3,1942.7,3.46848954]
[1772549225501,3.72274175,1943.7,1942.7,3.46848954]
[1772549225701,3.72274175,1943.5,1942.4,3.46848954]
[1772549225902,3.72274175,1943.3,1942.4,0.00520627]
[1772549226208,3.72274175,1942.9,1941.8,3.46848954]
[1772549226401,3.72274175,1942.7,1941.8,3.46848954]
[1772549226607,3.98017175,1942.6,1941.4,3.46848954]
[1772549227011,3.72274175,1942.5,1941.4,3.46848954]
[1772549227309,3.72274175,1942.5,1940.5,6.731]
[1772549227310,3.72274175,1942.3,1940.8,3.46848954]
[1772549227510,0.91853225,1942.4,1940.8,3.46848954]
[1772549227511,3.72274175,1942.1,1940.8,3.46848954]
[1772549227707,3.72681276,1942.1,1940.8,3.46848954]
[1772549228207,0.00407101,1942.1,1940.8,3.46848954]
[1772549228408,3.72681276,1942.1,1940.8,3.46848954]
[1772549228604,3.98012175,1943.0,1941.3,3.46848954]
[1772549228809,10.45474175,1942.9,1941.4,3.46848954]
[1772549229001,10.55558807,1943.5,1941.4,3.46848954]
[1772549229002,3.72274175,1943.2,1941.6,3.46848954]
[1772549229208,3.72274175,1943.2,1941.8,3.46848954]
[1772549229512,3.72274175,1943.0,1941.8,3.46848954]
[1772549229811,0.00590331,1943.0,1941.8,3.46848954]
[1772549230006,10.46064506,1943.0,1941.8,3.46848954]
[1772549230204,10.46064506,1943.0,1941.5,3.46848954]
[1772549230205,3.98014175,1942.8,1941.5,3.46848954]
[1772549230408,3.72274175,1942.3,1940.9,3.46848954]
[1772549230605,3.72274175,1942.1,1940.9,3.46848954]
[1772549230805,6.733,1942.2,1940.9,3.46848954]
[1772549231005,10.45574175,1942.2,1940.9,3.46848954]
[1772549231313,3.72274175,1942.1,1940.9,3.46848954]
[1772549232110,3.72274175,1942.1,1940.7,3.4733235]
[1772549232510,3.72274175,1941.9,1940.7,3.4733235]
[1772549232706,3.98025175,1942.0,1940.7,3.4733235]
[1772549232906,3.72274175,1941.8,1940.7,3.4733235]
[1772549233113,3.72274175,1941.6,1940.7,0.00483396]
[1772549233413,10.46268317,1941.6,1940.7,3.4733235]
[1772549233615,0.00594142,1941.6,1940.7,3.4733235]
[1772549234710,3.72868317,1941.6,1940.7,3.4733235]
[1772549235307,3.72274175,1941.4,1940.7,0.00483396]
[1772549235510,3.72274175,1941.2,1940.7,0.00483396]
[1772549235712,3.72274175,1941.2,1940.1,3.46848954]
[1772549236419,10.45774175,1941.2,1940.1,3.46848954]
[1772549236611,3.72274175,1941.1,1940.1,3.46848954]
[1772549236917,6.735,1941.1,1940.1,3.47344365]
[1772549237118,0.00594142,1941.6,1940.1,10.07211365]
[1772549237312,0.00594142,1941.6,1940.2,3.46848954]
[1772549237812,3.49883187,1941.6,1940.2,3.46848954]
[1772549238012,3.75639187,1941.6,1940.2,3.46848954]
[1772549238209,6.735,1941.5,1940.2,3.46848954]
[1772549238415,3.49289045,1941.4,1940.2,3.46848954]
[1772549238817,3.49289045,1941.2,1940.1,0.00495411]
[1772549239015,3.49289045,1941.0,1940.1,3.50888512]
[1772549239215,3.49289045,1941.0,1940.1,0.00495411]
[1772549239415,3.65623318,1941.5,1940.1,3.63351584]
[1772549239610,3.65623318,1941.3,1940.1,3.63351584]
[1772549239816,10.25104318,1941.3,1940.1,0.00495411]
[1772549240018,3.65623318,1941.0,1940.1,0.00495411]
[1772549240216,3.65623318,1940.8,1940.1,0.00495411]
[1772549240417,3.65623318,1940.8,1939.5,3.62856173]
[1772549241012,3.65623318,1940.4,1939.1,3.62856173]
[1772549241215,3.65623318,1940.2,1939.1,3.62856173]
[1772549241414,3.66140779,1940.2,1939.1,3.63480664]
[1772549241614,3.65623318,1940.0,1939.1,3.63480664]
[1772549242014,3.65623318,1940.0,1939.1,0.00624491]
[1772549242511,3.65623318,1939.8,1937.9,3.62856173]
[1772549242716,3.65623318,1939.6,1938.1,3.62856173]
[1772549243015,10.39223318,1939.5,1938.1,3.62856173]
[1772549243216,3.65623318,1939.5,1938.3,3.62856173]
[1772549243421,6.736,1939.9,1938.5,3.62856173]
[1772549243613,6.34363,1939.3,1938.1,5.64432434]
[1772549243814,0.25787,1939.3,1937.5,3.62856173]
[1772549244018,3.65623318,1939.5,1937.7,3.62856173]
[1772549244322,3.65623318,1939.5,1937.9,3.62856173]
[1772549244323,6.736,1939.2,1937.9,3.62856173]
[1772549244824,6.736,1939.1,1938.0,3.88660173]
[1772549245013,3.65623318,1939.5,1938.5,3.62856173]
[1772549245319,0.25773,1940.4,1939.0,10.23095173]
[1772549245320,3.65623318,1940.4,1939.0,10.23095173]
[1772549245512,3.65623318,1940.7,1939.3,3.62856173]
[1772549245711,3.65623318,1940.7,1939.3,3.63487325]
[1772549245916,3.65623318,1940.7,1939.5,3.62856173]
[1772549246822,3.66286359,1940.7,1939.5,3.62856173]
[1772549247319,3.92055359,1940.7,1939.3,0.00631152]
[1772549247525,3.95405218,1940.6,1939.3,3.63487325]
[1772549247724,3.95405218,1940.6,1939.3,0.00631152]
[1772549247725,3.65623318,1940.2,1939.3,0.00631152]
[1772549247927,3.65623318,1940.0,1939.3,0.00631152]
[1772549248222,3.65623318,1939.9,1938.7,3.62856173]
[1772549248422,6.736,1939.8,1938.7,3.62856173]
[1772549248626,3.65623318,1939.7,1938.7,3.62856173]
[1772549249227,10.39223318,1939.7,1938.7,3.63477874]
[1772549249428,3.65623318,1939.7,1938.7,3.63477874]
[1772549249728,10.39223318,1939.7,1938.7,3.63477874]
[1772549249919,3.65623318,1939.6,1938.7,3.63477874]
[1772549250120,3.65623318,1939.6,1938.7,0.00621701]
[1772549250322,3.95405218,1939.6,1938.1,3.88658173]
[1772549250628,6.736,1939.5,1938.1,3.88658173]
[1772549250828,10.39223318,1939.5,1938.1,3.88658173]
[1772549251329,3.65623318,1939.5,1938.4,3.62856173]
[1772549251926,6.736,1939.6,1938.1,0.00669604]
[1772549251927,3.65623318,1939.3,1938.1,3.63525777]
[1772549252120,6.736,1939.2,1938.1,3.63525777]
[1772549252325,0.00520427,1939.3,1938.3,3.62856173]
[1772549252725,3.66143745,1939.3,1938.3,3.62856173]
[1772549253219,0.00520427,1939.3,1938.3,3.62856173]
[1772549253428,3.66143745,1939.3,1938.3,3.62856173]
[1772549254228,3.66143745,1939.3,1938.1,3.63525777]
[1772549254727,3.65623318,1939.1,1938.1,3.63525777]
[1772549255132,3.65623318,1938.9,1937.5,3.62856173]
[1772549255328,3.65623318,1938.7,1937.5,3.62856173]
[1772549255531,3.65623318,1938.5,1937.2,3.62856173]
[1772549255732,3.65623318,1938.3,1937.2,3.62856173]
[1772549256127,3.65623318,1938.3,1937.2,3.63407588]
[1772549256328,3.65623318,1938.2,1937.2,3.63407588]
[1772549256737,3.91427318,1938.0,1937.2,0.00551415]
[1772549256932,3.65623318,1937.8,1936.3,0.25826]
[1772549257135,3.65623318,1937.6,1936.4,3.62856173]
[1772549257434,3.65623318,1937.5,1936.6,3.62856173]
[1772549257737,3.65623318,1937.5,1936.1,3.62856173]
[1772549257931,3.65623318,1937.5,1936.1,3.63289076]
[1772549257932,3.66078894,1937.5,1936.1,3.63289076]
[1772549258432,3.66078894,1937.5,1936.3,3.62856173]
[1772549258626,3.65623318,1937.3,1936.3,3.62856173]
[1772549258829,3.65623318,1937.3,1936.1,0.00432903]
[1772549259133,3.65623318,1937.1,1936.1,3.63289076]
[1772549259331,6.737,1937.0,1936.1,3.63289076]
[1772549259533,10.39323318,1937.0,1936.1,3.63289076]
[1772549259732,3.65623318,1936.9,1936.1,3.63289076]
[1772549260027,3.65623318,1937.2,1936.1,3.63289076]
[1772549260231,10.39323318,1937.1,1936.1,3.63289076]
[1772549260526,10.39323318,1937.0,1936.1,0.00432903]
[1772549260732,3.65623318,1936.9,1936.1,0.00432903]
[1772549260936,10.39323318,1936.8,1936.1,0.00432903]
[1772549261138,3.65623318,1936.6,1935.3,3.62856173]
[1772549261932,6.738,1936.5,1935.3,3.62856173]
[1772549262135,6.738,1936.5,1935.3,3.63277817]
[1772549262333,3.65623318,1936.3,1935.3,3.63277817]
[1772549262532,0.2582,1936.9,1935.3,3.63277817]
[1772549262734,3.65623318,1936.7,1935.3,3.63277817]
[1772549263034,3.65623318,1936.5,1935.3,3.63277817]
[1772549263231,3.65623318,1936.2,1934.7,3.88703173]
[1772549263432,3.65623318,1936.0,1934.7,3.62856173]
[1772549263833,3.65623318,1935.8,1934.7,3.62856173]
[1772549264234,0.00498509,1935.8,1934.9,3.62856173]
[1772549265435,3.66121827,1935.8,1934.7,0.00400048]
[1772549265738,3.66121827,1935.8,1934.7,3.63256221]
[1772549265937,0.00498509,1935.8,1934.7,3.89103221]
[1772549266143,3.65623318,1936.4,1935.0,3.62856173]
[1772549266333,3.65623318,1936.7,1935.2,3.62856173]
[1772549266534,10.39623318,1937.1,1935.8,3.62856173]
[1772549267042,3.65623318,1937.0,1935.8,3.62856173]
[1772549267341,3.65623318,1937.0,1935.5,6.356]
[1772549267342,0.00618471,1937.0,1936.2,3.62856173]
[1772549267536,0.00618471,1937.0,1936.2,3.63402834]
[1772549267733,3.66241789,1937.0,1936.2,3.94832743]
[1772549268134,0.00618471,1937.0,1936.2,3.94832743]
[1772549268431,0.25803,1938.1,1936.6,3.94286082]
[1772549268432,3.87343031,1937.9,1936.6,3.94286082]
[1772549268638,3.87343031,1937.4,1936.2,0.00546661]
[1772549268931,3.87343031,1937.2,1935.8,3.94286082]
[1772549269337,3.87343031,1936.8,1935.8,3.94286082]
[1772549269536,3.87343031,1936.4,1935.2,3.94286082]
[1772549269837,3.87949854,1936.4,1935.2,3.94701709]
[1772549270434,0.00606823,1936.4,1935.4,3.94286082]
[1772549270632,6.34952,1937.5,1935.4,3.94286082]
[1772549270633,3.87343031,1937.3,1935.8,3.94286082]
[1772549270835,3.87343031,1937.3,1936.2,3.94286082]
[1772549271441,6.739,1937.4,1936.2,3.94286082]
[1772549271839,3.87343031,1937.3,1936.2,3.94286082]
[1772549272143,6.738,1937.2,1936.2,3.94286082]
[1772549272339,0.00465099,1937.4,1936.2,3.94286082]
[1772549273445,0.00465099,1937.4,1936.4,3.94286082]
[1772549273945,0.00465099,1937.4,1936.6,3.94286082]
[1772549274245,0.00465099,1937.4,1936.6,3.94739729]
[1772549274548,3.8780813,1937.4,1936.6,3.94739729]
[1772549274742,3.8780813,1937.4,1936.6,0.00453647]
[1772549276440,0.00465099,1937.4,1936.6,3.94739729]
[1772549276844,3.8780813,1937.4,1936.6,3.94739729]
[1772549277247,3.8780813,1937.4,1935.8,0.25833]
[1772549277248,3.8780813,1937.4,1936.3,3.94286082]
[1772549277648,10.61043031,1937.3,1936.3,3.94286082]
[1772549278248,3.87343031,1937.2,1936.3,3.94855898]
[1772549278849,6.737,1937.3,1936.3,3.94855898]
[1772549279050,10.61043031,1937.3,1936.3,3.94855898]
[1772549279351,3.87343031,1937.2,1936.3,3.94855898]
[1772549279750,0.00465099,1937.4,1936.3,3.94855898]
[1772549280345,3.8780813,1937.4,1936.3,3.94855898]
[1772549280547,3.87343031,1937.2,1936.3,0.00569816]
[1772549280852,0.00465099,1937.4,1936.3,3.94855898]
[1772549281847,0.00465099,1937.4,1936.5,3.94286082]
[1772549282649,3.8780813,1937.4,1936.5,3.94286082]
[1772549282844,10.22358031,1937.3,1936.3,0.00569816]
[1772549283049,3.87343031,1936.9,1935.9,3.94286082]
[1772549283553,6.737,1936.8,1935.9,3.94286082]
[1772549283752,3.87343031,1936.7,1935.9,3.94286082]
[1772549283954,3.87343031,1936.7,1935.9,0.00659673]
[1772549284152,3.87343031,1936.7,1935.5,3.94286082]
[1772549284457,4.13165031,1936.7,1935.5,3.94286082]
[1772549284655,0.297819,1936.6,1935.6,10.29831082]
[1772549284954,3.87343031,1937.3,1936.1,3.94286082]
[1772549285150,3.87343031,1937.3,1936.3,3.94286082]
[1772549285753,6.74065099,1937.4,1936.3,3.94286082]
[1772549285957,0.00465099,1937.4,1936.3,3.94286082]
[1772549286263,4.78443227,1937.4,1936.3,3.94286082]
[1772549286452,3.87343031,1936.8,1936.1,0.00515903]
[1772549286651,0.25818,1936.9,1936.1,0.00515903]
[1772549286652,4.13161031,1936.9,1936.1,0.00515903]
[1772549286855,6.737,1937.2,1936.1,0.00515903]
[1772549286856,0.00465099,1937.4,1936.3,3.94286082]
[1772549287055,0.65288274,1937.4,1936.3,3.94286082]
[1772549287258,0.00465099,1937.4,1936.3,3.94286082]
[1772549287456,11.26326067,1937.4,1936.3,3.94286082]
[1772549287656,0.64790219,1937.3,1936.3,3.94286082]
[1772549287858,10.6150813,1937.4,1936.3,3.94286082]
[1772549288060,0.64754726,1937.3,1936.3,3.94286082]
[1772549288257,3.8780813,1937.4,1936.3,3.94286082]
[1772549288460,10.6150813,1937.4,1936.3,3.94286082]
[1772549288861,4.51502846,1937.3,1936.1,3.94801985]
[1772549289162,3.87343031,1937.3,1936.1,3.94801985]
[1772549289356,6.74165099,1937.4,1936.3,3.94286082]
[1772549289553,0.00465099,1937.4,1936.3,3.94286082]
[1772549290355,4.52033619,1937.4,1936.3,3.94286082]
[1772549290553,4.52033619,1937.4,1936.1,0.00515903]
[1772549290554,10.22396031,1937.2,1936.1,0.00515903]
[1772549290758,3.87343031,1937.0,1935.7,3.94286082]
[1772549290957,3.87343031,1936.8,1935.7,3.94286082]
[1772549291162,0.64225489,1936.7,1935.7,3.94286082]
[1772549291465,6.34007126,1937.3,1935.7,3.94286082]
[1772549291466,3.87343031,1937.1,1935.7,3.94286082]
[1772549291655,3.87343031,1937.1,1936.1,3.94286082]
[1772549291859,10.61043031,1937.3,1936.1,3.9493602]
[1772549292059,4.51545396,1937.2,1936.1,3.9493602]
[1772549292260,10.48278031,1937.0,1936.1,0.00649938]
[1772549292460,3.87343031,1936.5,1935.8,3.94286082]
[1772549292766,8.31537868,1937.1,1935.8,3.94286082]
[1772549292963,3.87343031,1937.3,1936.1,3.94286082]
[1772549293259,4.77398645,1937.2,1936.1,3.94286082]
[1772549293565,4.13164031,1936.7,1936.1,0.00364043]
[1772549293764,3.87343031,1936.5,1935.8,3.94286082]
[1772549293960,4.51583645,1936.4,1935.3,3.94286082]
[1772549294165,3.87343031,1936.2,1935.3,3.94286082]
[1772549294368,3.87343031,1936.0,1935.0,3.94286082]
[1772549294562,3.87343031,1935.8,1934.6,3.94286082]
[1772549294864,3.87343031,1935.8,1934.3,0.0109754]
[1772549294865,4.13183031,1935.3,1934.3,3.95383622]
[1772549295066,3.87343031,1935.1,1934.3,0.0109754]
[1772549295461,3.87343031,1935.1,1934.3,3.95383622]
[1772549295861,3.87343031,1935.1,1934.3,3.95796403]
[1772549296163,3.87343031,1935.7,1934.3,3.95796403]
[1772549296463,3.87343031,1935.5,1934.3,3.95796403]
[1772549296660,3.87343031,1935.3,1934.3,3.95796403]
[1772549296856,10.61143031,1935.3,1934.3,3.95796403]
[1772549297059,6.738,1935.3,1934.3,3.95796403]
[1772549297266,3.87343031,1935.4,1934.3,3.95796403]
[1772549297461,3.87343031,1935.7,1934.3,4.21648403]
[1772549297664,0.00634507,1935.8,1935.0,3.94286082]
[1772549297863,3.87343031,1936.3,1935.0,3.94286082]
[1772549298365,6.738,1936.5,1935.2,3.71954023]
[1772549298563,3.79151797,1936.6,1935.4,3.71954023]
[1772549298968,6.739,1936.5,1935.4,3.71954023]
[1772549299164,6.74408177,1936.6,1935.4,3.71954023]
[1772549299363,0.00508177,1936.6,1935.4,3.71954023]
[1772549300262,0.25824,1936.5,1935.4,3.71954023]
[1772549300563,10.66459373,1936.4,1935.1,4.13727808]
[1772549301165,10.66459373,1936.5,1935.1,4.13727808]
[1772549301568,3.92559373,1936.5,1935.1,4.13727808]
[1772549301872,10.66459373,1936.5,1935.1,4.13727808]
[1772549302266,3.92559373,1936.4,1935.1,4.13727808]
[1772549302567,3.9306755,1936.6,1935.2,3.87886808]
[1772549302764,4.1889055,1936.6,1935.2,3.87886808]
[1772549303161,3.92559373,1936.3,1935.2,3.87886808]
[1772549303373,3.92559373,1936.1,1934.9,3.87886808]
[1772549303574,6.739,1936.1,1934.9,3.87886808]
[1772549303768,3.92559373,1936.2,1934.9,3.87886808]
[1772549303964,3.92559373,1936.2,1935.1,3.87886808]
[1772549304168,10.66459373,1936.2,1935.1,3.87886808]
[1772549304364,3.92559373,1936.1,1935.1,3.87886808]
[1772549304569,6.739,1936.2,1935.1,3.87886808]
[1772549304972,3.92559373,1936.5,1935.1,3.87886808]
[1772549305176,3.92559373,1936.3,1935.1,3.87886808]
[1772549305375,3.92559373,1936.1,1935.1,3.87886808]
[1772549306173,3.92559373,1936.5,1935.3,3.87886808]
[1772549306471,3.9306755,1936.6,1935.3,3.87886808]
[1772549307068,6.739,1936.5,1935.3,3.87886808]
[1772549307267,3.9306755,1936.6,1935.9,3.87886808]
[1772549307268,0.00508177,1936.6,1935.9,3.87886808]
[1772549307473,0.00508177,1936.6,1935.9,3.88307963]
[1772549307672,3.92559373,1937.2,1936.3,3.87886808]
[1772549307872,6.34758211,1938.0,1936.5,3.87886808]
[1772549307873,3.92559373,1938.0,1936.5,3.87886808]
[1772549308075,0.25801,1938.2,1936.7,3.87886808]
[1772549308076,3.92559373,1937.9,1936.7,3.87886808]
[1772549308578,3.92559373,1937.7,1936.7,3.87886808]
[1772549308876,3.92559373,1937.7,1936.2,3.87886808]
[1772549309271,3.92559373,1937.7,1936.4,3.87886808]
[1772549309472,3.92559373,1937.8,1936.4,3.87886808]
[1772549310086,3.92559373,1937.6,1936.4,3.87886808]
[1772549310385,4.18369373,1937.5,1936.4,3.87886808]
[1772549310687,3.92559373,1937.2,1936.0,3.87886808]
[1772549310880,3.92559373,1937.0,1936.0,3.87886808]
[1772549311082,3.92559373,1936.8,1936.0,3.87886808]
[1772549311779,3.92559373,1936.8,1935.9,0.00421155]
[1772549311981,3.92559373,1936.8,1935.9,3.88307963]
[1772549312281,3.92559373,1937.1,1935.9,3.88307963]